Cogmind - Beta 10.2 @@@ ROGUE MODE // 2021.09.29 @ 00:32:29 Player: Jezoensis Result: Destroyed by as-09149 with Assembled Blade Performance ------------- Evolutions (0) 0 Regions Visited (2) 400 Robots Destroyed (24) 120 Value Destroyed (433) 433 Prototype IDs (0) 0 Alien Tech Used (0) 0 Bonus (0) 0 TOTAL SCORE: 953 Bonus ------- None Cogmind --------- Core Integrity 0/250 Matter 63/300 Energy 52/100 System Corruption 1% Temperature Cool (0) Movement Core (200) Ox3 Location -10/Mines Parts ------- > --- POWER (1) -------- (None) > --- PROPULSION (2) --- (None) > --- UTILITY (2) ------ Medium Storage Unit > --- WEAPON (2) ------- Assault Rifle Assault Rifle > --- INVENTORY (8) ---- Large Storage Unit Improved Terrain Scanner Mining Laser Peak State ------------ > --- POWER ------------ Light Ion Engine > --- PROPULSION ------- Aluminum Leg Aluminum Leg > --- UTILITY ---------- Small Storage Unit Improved Terrain Scanner > --- WEAPON ----------- EM Pulse Gun Assault Rifle > --- INVENTORY -------- Ion Engine Medium Laser Mining Laser [Rating: 8] Favorites ----------- Power Ion Engine Engine Ion Engine Propulsion Aluminum Leg Leg Aluminum Leg Utility Improved Terrain Scanner Device Improved Terrain Scanner Storage Small Storage Unit Weapon Assault Rifle Energy Gun EM Pulse Gun Ballistic Gun Assault Rifle Launcher Grenade Launcher Build | -11 -10 -10 ------- Run | Scr Mat Min Slots Evolved . | . . . Power . | . . . Propulsion . | . . . Utility . | . . . Weapon . | . . . Parts Attached 27 | 7 9 11 Power 3 | 1 2 . Engine 3 | 1 2 . Core . | . . . Reactor . | . . . Propulsion 6 | 2 2 2 Treads . | . . . Leg 6 | 2 2 2 Wheel . | . . . Hover . | . . . Flight . | . . . Utility 5 | 2 2 1 Device 3 | 1 1 1 Storage 2 | 1 1 . Processor . | . . . Hackware . | . . . Protection . | . . . Artifact . | . . . Weapon 13 | 2 3 8 Energy Gun 3 | 1 1 1 Energy Cannon . | . . . Ballistic Gun 7 | 1 2 4 Ballistic Cannon . | . . . Launcher 3 | . . 3 Special Weapon . | . . . Impact Weapon . | . . . Slashing Weapon . | . . . Piercing Weapon . | . . . Special Melee Weapon . | . . . Unidentified Prototypes . | . . . Parts Lost 9 | . . 9 Power 1 | . . 1 Propulsion 4 | . . 4 Utility 1 | . . 1 Weapon 3 | . . 3 Highest Loss Streak 8 | . . 8 Average Slot Usage (%) 96 | . 98 88 Engine 13 | . 14 10 Leg 27 | . 28 26 Device 12 | . 12 9 Storage 14 | . 14 14 Energy Gun 4 | . 5 1 Ballistic Gun 22 | . 22 22 Naked Turns . | . . . Heaviest Build 18 | 12 18 18 Greatest Support 20 | 20 20 20 Greatest Overweight (x) . | . . . Average Overweight (x) . | . . . Largest Inventory Capacity 8 | 6 8 8 Average Capacity 6 | 5 6 8 Most Carried 8 | 4 8 8 Average Carried 5 | 2 6 6 Final Capacity 8 | 6 8 8 Final Carried 8 | 4 8 3 Class Distribution -------------------- 95% | Mutant 4% | Scavenger-Mutant Dominant Class ---------------- Mutant | -10/Materials Mutant | -10/Mines Resources | -11 -10 -10 ----------- Run | Scr Mat Min Matter Collected 547 | 294 229 24 Remotely . | . . . Salvage Created 765 | 132 520 113 Parts 63 | 10 43 10 Haulers Intercepted 2 | . 2 . Recyclers Shooed 1 | . 1 . Parts Field Recycled . | . . . Retrieved Matter . | . . . Parts Self-Destructed . | . . . Prevented . | . . . Kills | -11 -10 -10 ------- Run | Scr Mat Min Combat Hostiles Destroyed 24 | . 10 14 Guns 15 | . 10 5 AOE 9 | . . 9 Classes Destroyed 8 | 2 5 1 Builder 1 | . 1 . Tunneler 4 | 3 . 1 Hauler 2 | . 2 . Recycler 1 | 1 . . Watcher 2 | . 2 . Swarmer 6 | . 3 3 Grunt 8 | . 7 1 Assembled 10 | . . 10 Best Kill Streak 10 | 4 7 10 Combat Bots Only 10 | . 5 10 Max Kills in Single Turn 2 | 1 2 2 Gunslinging 1 | . 1 1 Exploded 2 | . . 2 Melee . | . . . Uniques/NPCs Destroyed . | . . . Combat | -11 -10 -10 -------- Run | Scr Mat Min Damage Taken 1201 | . 323 878 Core 254 | . 46 208 Absorbed by Shields . | . . . Core Remaining (%) 100 | 100 . . Volleys Fired 72 | 8 38 26 Largest 2 | 2 2 2 Hottest 70 | 60 70 60 Shots Fired 134 | 16 76 42 Gun 123 | 16 76 31 Cannon . | . . . Launcher 11 | . . 11 Special . | . . . Kinetic 83 | 8 52 23 Thermal 5 | . 5 . Explosive 11 | . . 11 Electromagnetic 35 | 8 19 8 Robot Hit Streak 11 | 6 10 11 Robot Miss Streak 4 | 2 4 2 Penetration Max . | . . . Secondary Targets 5 | . 2 3 Max Gunslinging Chain 1 | . 1 1 Shots Hit Robots 88 | 10 47 31 Core Hits 59 | 4 24 31 Critical Hits . | . . . Critical Kills . | . . . Critical Parts Destroyed . | . . . Melee Attacks . | . . . Impact . | . . . Slashing . | . . . Piercing . | . . . Sneak Attacks . | . . . Combat Hostiles . | . . . Follow-up Attacks . | . . . Damage Inflicted 1849 | 185 556 1108 Guns 946 | 137 556 253 Cannons . | . . . Explosions 903 | 48 . 855 Melee . | . . . Ramming . | . . . Kinetic 569 | 67 340 162 Thermal 110 | 48 62 . Explosive 855 | . . 855 Electromagnetic 315 | 70 154 91 Impact . | . . . Slashing . | . . . Piercing . | . . . Highest Corruption 1 | . . 1 Average Corruption 1 | . . 1 Corruption Purged . | . . . Overload Shots . | . . . Overflow Damage 62 | . . 62 Projectiles . | . . . Explosions 62 | . . 62 Melee . | . . . Knockbacks . | . . . Impact . | . . . Kinetic . | . . . Secondary . | . . . Self-Inflicted Damage 139 | . . 139 Shots 4 | . . 4 Rammed . | . . . Targets Rammed . | . . . Kicked . | . . . Crushed . | . . . Highest Temperature 78 | . 78 6 Average Temperature 25 | . 27 3 Received Heat Transfer 171 | . 138 33 Siege Activations . | . . . Robots Corrupted . | . . . Combat Hostiles . | . . . Parts Fried . | . . . Impact Corruptions . | . . . Robots Melted . | . . . Combat Hostiles . | . . . Parts Melted . | . . . Heat Transferred 185 | . 185 . Parts Sabotaged . | . . . Parts Stolen . | . . . Parts Stripped . | . . . Power Chain Reactions 1 | 1 . . Missiles Intercepted . | . . . Alert | -11 -10 -10 ------- Run | Scr Mat Min Peak Influence 329 | 20 329 139 Initial 54 | . 13 54 Average 152 | 8 182 120 Maximum Alert Level 1 | . 1 . Low Security (%) 69 | 100 56 100 Level 1 30 | . 43 . Level 2 . | . . . Level 3 . | . . . Level 4 . | . . . Level 5 . | . . . High Security . | . . . Max Security . | . . . Squads Dispatched 1 | . 1 . Investigation 1 | . 1 . Extermination . | . . . Reinforcement . | . . . Assault . | . . . Garrison . | . . . Intercept . | . . . Construction Impeded . | . . . Haulers Reinforced . | . . . Stealth | -11 -10 -10 --------- Run | Scr Mat Min Distress Signals . | . . . Communications Jammed . | . . . Distress Signals . | . . . Times Spotted 33 | . 13 20 Peak Tracking Total 7 | . 5 7 Tactical Retreats 1 | . . 1 Traps | -11 -10 -10 ------- Run | Scr Mat Min Traps Triggered 1 | . 1 . Indirectly . | . . . Trap Hack Attempts . | . . . Triggered . | . . . Disarmed . | . . . Reprogrammed . | . . . Reused . | . . . Traps Extracted . | . . . Installed . | . . . Triggered . | . . . Machines | -11 -10 -10 ---------- Run | Scr Mat Min Machines Disabled . | . . . Max in Single Turn . | . . . Machines Sabotaged . | . . . Garrisons Compromised . | . . . Overloaded Fab Kills . | . . . Fab Network Shutdowns . | . . . Hacking | -11 -10 -10 --------- Run | Scr Mat Min Machines Accessed 5 | . 5 . Terminals 4 | . 4 . Fabricators . | . . . Repair Stations . | . . . Recycling Units 1 | . 1 . Scanalyzers . | . . . Garrison Access . | . . . Total Hacks 12 | . 12 . Successful 6 | . 6 . Failed 6 | . 6 . Catastrophic . | . . . Database Lockouts . | . . . Manual 10 | . 10 . Terminals 10 | . 10 . Fabricators . | . . . Repair Stations . | . . . Recycling Units 2 | . 2 . Scanalyzers . | . . . Garrison Access . | . . . Terminal Hacks 2 | . 2 . Terminal Index 1 | . 1 . Locate Traps 1 | . 1 . Fabricator Hacks . | . . . Repair Station Hacks . | . . . Recycling Unit Hacks . | . . . Scanalyzer . | . . . Garrison Access Hacks . | . . . Unauthorized Hacks 4 | . 4 . Terminals 3 | . 3 . Track 1 | . 1 . Botnet 2 | . 2 . Fabricators . | . . . Repair Stations . | . . . Recycling Units 1 | . 1 . Recyclers 1 | . 1 . Scanalyzers . | . . . Garrison Access . | . . . Data Cores Recovered . | . . . Used . | . . . Hacking Detections 5 | . 5 . Full Trace Events . | . . . Feedback Events . | . . . Feedback Blocked . | . . . Robot Schematics Acquired . | . . . Robots Built . | . . . Matter . | . . . Time . | . . . Total Robot Build Rating . | . . . Part Schematics Acquired . | . . . Parts Built . | . . . Matter . | . . . Time . | . . . Total Part Build Rating . | . . . Parts Repaired . | . . . Time . | . . . Parts Recycled . | . . . Recycled Matter . | . . . Retrieved Matter . | . . . Retrieved Components . | . . . Parts Scanalyzed . | . . . Part Schematics Acquired . | . . . Parts Damaged . | . . . Bothacking | -11 -10 -10 ------------ Run | Scr Mat Min Used RIF Installer . | . . . Robots Hacked . | . . . Non-combat . | . . . Combat . | . . . Robot Hacks Applied . | . . . Relay Couplers Released . | . . . Robots Rewired . | . . . Allies Hacked . | . . . Hacks Repelled . | . . . Allies | -11 -10 -10 -------- Run | Scr Mat Min Total Allies . | . . . Largest Group . | . . . Highest-Rated Group . | . . . Highest-Rated Ally . | . . . Total Orders . | . . . Ally Attacks . | . . . Total Damage . | . . . Kills . | . . . Allies Corrupted . | . . . Allies Melted . | . . . Intel | -11 -10 -10 ------- Run | Scr Mat Min Robot Analysis Total . | . . . Derelict Logs Recovered . | . . . Drone Launches . | . . . Drone Recoveries . | . . . Exploration | -11 -10 -10 ------------- Run | Scr Mat Min Turns Passed 881 | 97 625 159 Spaces Moved 520 | 51 403 66 Core 3 | 3 . . Treads . | . . . Legs 517 | 48 403 66 Wheels . | . . . Hover . | . . . Flight . | . . . Fastest Speed 50 | 50 120 120 Average Speed 119 | 115 120 120 Slowest Speed 120 | 120 120 120 Overloaded Moves . | . . . Propulsion Burnouts . | . . . Robots Hopped . | . . . Cave-ins Triggered . | . . . Exploration Rate (%) 29 | 4 63 22 Regions Visited 2 Branch Regions 1 Pre-discovered Areas . | . . . Known Exits Taken . | . . . Unknown Exits Taken 2 | 1 1 . Scrap Searched . | . . . Spaces Dug . | . . . Terrain Destroyed 48 | 1 . 47 Melee . | . . . Projectile . | . . . AOE 48 | 1 . 47 Terrain Rammed . | . . . Walls Destroyed . | . . . Machines Disabled . | . . . Actions | -11 -10 -10 --------- Run | Scr Mat Min Total 647 | 70 473 104 Wait 6 | . 6 . Move 518 | 50 402 66 Hop . | . . . Pick Up 12 | 5 7 . Fast Attach 8 | 6 2 . Attach 8 | 1 2 5 Detach 1 | . 1 . Swap 11 | . 5 6 Drop 11 | . 10 1 Fire 72 | 8 38 26 Melee . | . . . Ram . | . . . Kick . | . . . Crush . | . . . Escape Stasis . | . . . Rewire . | . . . Trap . | . . . Miscellaneous . | . . . Route ------- -11/Scrapyard -10/Materials (discovered 4 exits: [*Mat x3] / [*Min]) -10/Mines History --------- Turn | Location | Event 10 | -11/Scrapyard | Discovered new exit (range 16) 98 | -11/Scrapyard | Entered Materials 303 | -10/Materials | Discovered new exit (range 16) 316 | -10/Materials | Build established: Mutant 600 | -10/Materials | Discovered new exit (range 11) 659 | -10/Materials | Discovered new exit (range 7) 661 | -10/Materials | Discovered new exit (range 16) 723 | -10/Materials | Entered Mines 807 | -10/Mines | Assembled infested the area 812 | -10/Mines | Assisted by a Guerilla fighting off Assembled 858 | -10/Mines | Core integrity fell below 50% 880 | -10/Mines | Core integrity fell below 20% 882 | -10/Mines | Destroyed by as-09149 with Assembled Blade Last Messages --------------- 00847_ Knocked back. 00849_ Destroyed Asb. Hover Unit. 00849_ as-57574 destroyed. 00849_ Grenade Launcher destroyed. 00849_ Destroyed Grenade Launcher. 00858_ as-53569 destroyed. 00858_ Switching to secondary target: as-34086. 00858_ as-34086 destroyed. 00860_ The unstable cave ceiling collapses. 00860_ Wheel crushed. 00860_ Assault Rifle destroyed. 00867_ The unstable cave ceiling collapses. 00867_ as-38519 destroyed. 00867_ Switching to secondary target: as-04923. 00873_ as-87912 destroyed. 00873_ Switching to secondary target: as-04923. 00877_ Aluminum Leg destroyed. 00877_ EM Pulse Gun destroyed. 00879_ as-04923 destroyed. 00880_ Aluminum Leg destroyed. Map ----- +----------------------------------------------------+ | ??? ?? ????????????????????????????????????????? | | ???# ???????????????????????????????????????????? | | ???# ???????????????????????????????????????????? | | ???# #??????????????????????????????????????????? | | ?#?# ######?????????????????????????????????????? | | ???# # #?????????????????????????????????????? | | ???# #??????? ?????????????????????????????? | | ??## #???? ?????? ?????????????????????????? | | ???# #?????????? ?????????????????????? | | ???# ##?????#???? ????????????????????? | | #??# #???#?????? ??????????????????? | | ???# [ #?????????# #??????????????????? | | ???# ####??#?#????# #??????????????????? | | ???#### #??????????### ! #??????????????????? | | ????### ############ !%= #??????????????????? | | ?#??# # ! #?#????????????????? | | ????# ##?????????????????? | | ????# ## # ## ###???????????????? | | ??### ### =| " ???????????????? | | ????# ## =%* #?????????????????? | | ???## *# % =%##?????????????????? | | ???# !%"######????????????? | | ???# ### # !"%" ????????????? | | ???# #?### ##?????????????????? | | ??## |=#???# # % a ## ##??????????????????? | | ???#! !#???# %a@ #?????????????????????? | | ???# = #???### a a #?????????????????????? | | ???## ##???## ###### % ????????????????? | | ????# #?????# ????## $% ???????????? | | ?#?# #????## ????######### ??????????? | | ???# #????# ??????????????? ??????????? | | ???## #???# ?????????????????????????????? | | ?#??### #?#?# #????????????????????????????? | | ???????# #???# ????????????????????????????? | | ???????? #???# ????????????????????????????? | | ????????# ###?### ???????????????????????????? | | ?????????##??????# ###???????????????????????????? | | ??????????????????#??????????????????????????????? | | ?????????????????????????????????????????????????? | | ?????????????#???????????????????????????????????? | | | | | | | | | | | | | | | | | | | | | +----------------------------------------------------+ Best States ------------- Heat Dissipation 25 Energy Generation 10 Energy Capacity 250 Matter Stores 300 Matter Capacity 300 Sight Range 16 Terrain Scan Range 16 Terrain Scan Density 10 Evasion (%) 40 Item Schematics ----------------- None Robot Schematics ------------------ None Fabricated ------------ Nothing Alien Tech Used ----------------- None Achievements -------------- None Challenges ------------ None Game ------ Seed ModifiedExplosiveFilter Manual? 0 Play Time 00:11:21 Cumulative 324.4 hours Start 2021.09.29 @ 00:23:54 End 2021.09.29 @ 00:32:29 Sessions 1 Manual Loads 0 Difficulty Rogue Special Mode None Game No. 148 Rogue 33 Adventurer 113 Explorer 2 Win Type - Total 25 Types 22/2/0/0/0/0/0/0/1 Lore% 49 Gallery% 79 Achievement% 55 Wizard Run 0 Options --------- ASCII 0 Keyboard 1 Movement Numpad Keybinds 0 Fullscreen 1 Font 36/TerminusFine Map View 76x50 Tactical HUD 1 Map Filters NONE Filters NONE Steam 1 RUN: 1a96756d-5ed7-4115-b0a2-71df5596c4db